[Event "Late-Titled-Tuesday-Blitz-January-30-2024"]
[Site "Chess.com"]
[Date "2024.01.30"]
[Round "3"]
[White "Sandpacer"]
[Black "reevecanada"]
[Result "1-0"]
[WhiteElo "2476"]
[BlackElo "2605"]
[TimeControl "180+1"]
[EndTime "14:23:57 PST"]
[Termination "Sandpacer won by resignation"]

1. e4 {[%clk 0:03:00.9]} 1... c5 {[%clk 0:02:47.9]} 2. Nf3 {[%clk 0:03:00.8]}
2... d6 {[%clk 0:02:46.6]} 3. d4 {[%clk 0:03:01.5]} 3... cxd4 {[%clk 0:02:47]}
4. Nxd4 {[%clk 0:03:02.4]} 4... Nf6 {[%clk 0:02:46.7]} 5. Nc3 {[%clk 0:03:03.2]}
5... a6 {[%clk 0:02:47.1]} 6. Be2 {[%clk 0:03:03.9]} 6... e5 {[%clk 0:02:46.7]}
7. Nb3 {[%clk 0:03:04.6]} 7... Be6 {[%clk 0:02:46.6]} 8. O-O {[%clk 0:03:05.3]}
8... Be7 {[%clk 0:02:46.8]} 9. a4 {[%clk 0:03:06]} 9... Nbd7 {[%clk 0:02:46.9]}
10. f4 {[%clk 0:03:06.7]} 10... Rc8 {[%clk 0:02:45.8]} 11. f5 {[%clk 0:03:06.4]}
11... Bc4 {[%clk 0:02:45.6]} 12. a5 {[%clk 0:03:05.2]} 12... Qc7 {[%clk
0:02:44.1]} 13. Be3 {[%clk 0:03:05]} 13... Bxe2 {[%clk 0:02:43.5]} 14. Qxe2
{[%clk 0:03:04.7]} 14... Qc4 {[%clk 0:02:44]} 15. Qf3 {[%clk 0:02:57.3]} 15...
Nc5 {[%clk 0:02:36.5]} 16. Nxc5 {[%clk 0:02:57.3]} 16... Rxc5 {[%clk 0:02:25.3]}
17. Ra4 {[%clk 0:02:57.1]} 17... Qxa4 {[%clk 0:02:18.5]} 18. Nxa4 {[%clk
0:02:57.7]} 18... Rxa5 {[%clk 0:02:19.1]} 19. b3 {[%clk 0:02:54.6]} 19... Bd8
{[%clk 0:02:13.7]} 20. Bd2 {[%clk 0:02:53.6]} 20... Rb5 {[%clk 0:02:12.4]} 21.
c4 {[%clk 0:02:53.8]} 21... Ra5 {[%clk 0:02:10.7]} 22. Bxa5 {[%clk 0:02:53.5]}
22... Bxa5 {[%clk 0:02:11.6]} 23. Rd1 {[%clk 0:02:50.3]} 23... Ke7 {[%clk
0:02:11]} 24. c5 {[%clk 0:02:45.7]} 24... dxc5 {[%clk 0:02:10.5]} 25. Nxc5
{[%clk 0:02:46.6]} 25... Bb6 {[%clk 0:02:09.8]} 26. b4 {[%clk 0:02:42.1]} 26...
a5 {[%clk 0:02:10.3]} 27. Qc3 {[%clk 0:02:27.8]} 1-0

[Event "Late-Titled-Tuesday-Blitz-January-30-2024"]
[Site "Chess.com"]
[Date "2024.01.30"]
[Round "3"]
[White "Alexei_Gubajdullin"]
[Black "GiorgianBarbosa"]
[Result "1-0"]
[WhiteElo "2619"]
[BlackElo "2458"]
[TimeControl "180+1"]
[EndTime "14:24:11 PST"]
[Termination "Alexei_Gubajdullin won by resignation"]

1. Nf3 {[%clk 0:03:00.9]} 1... Nf6 {[%clk 0:02:58.4]} 2. g3 {[%clk 0:03:00.8]}
2... e6 {[%clk 0:02:58.5]} 3. Bg2 {[%clk 0:03:00.9]} 3... d5 {[%clk 0:02:59.4]}
4. O-O {[%clk 0:03:01]} 4... Be7 {[%clk 0:03:00.3]} 5. b3 {[%clk 0:03:00.9]}
5... O-O {[%clk 0:03:01.2]} 6. Bb2 {[%clk 0:03:01.3]} 6... a5 {[%clk 0:03:01]}
7. Nc3 {[%clk 0:02:57.6]} 7... c5 {[%clk 0:02:59.9]} 8. e3 {[%clk 0:02:57.5]}
8... Nc6 {[%clk 0:02:58.8]} 9. a4 {[%clk 0:02:57.1]} 9... b6 {[%clk 0:02:55.2]}
10. Nb5 {[%clk 0:02:56.8]} 10... Ba6 {[%clk 0:02:53.6]} 11. d3 {[%clk
0:02:53.6]} 11... Na7 {[%clk 0:02:49.6]} 12. Nxa7 {[%clk 0:02:50.3]} 12... Rxa7
{[%clk 0:02:49.2]} 13. Ne5 {[%clk 0:02:50.4]} 13... Bb7 {[%clk 0:02:43.2]} 14.
f4 {[%clk 0:02:49.4]} 14... Nd7 {[%clk 0:02:41.8]} 15. Nxd7 {[%clk 0:02:47.9]}
15... Qxd7 {[%clk 0:02:42.7]} 16. Qg4 {[%clk 0:02:47.6]} 16... g6 {[%clk
0:02:39.4]} 17. Qh3 {[%clk 0:02:47.5]} 17... Qd8 {[%clk 0:02:35.6]} 18. e4
{[%clk 0:02:34.8]} 18... Bf6 {[%clk 0:02:33.4]} 19. Bxf6 {[%clk 0:02:33.2]}
19... Qxf6 {[%clk 0:02:32.6]} 20. e5 {[%clk 0:02:33.4]} 20... Qe7 {[%clk
0:02:29.7]} 21. c3 {[%clk 0:02:24.5]} 21... Rc8 {[%clk 0:02:22.1]} 22. Bf3
{[%clk 0:02:23.5]} 22... d4 {[%clk 0:02:20.9]} 23. Bxb7 {[%clk 0:02:19.6]} 23...
Rxb7 {[%clk 0:02:21.8]} 24. c4 {[%clk 0:02:19.6]} 24... h5 {[%clk 0:02:18.9]}
25. Rae1 {[%clk 0:02:18.5]} 25... Kf8 {[%clk 0:02:17.5]} 26. Qg2 {[%clk
0:02:18.3]} 26... Ke8 {[%clk 0:02:17.2]} 27. h3 {[%clk 0:02:18.4]} 27... Kd7
{[%clk 0:02:17.1]} 28. Qxb7+ {[%clk 0:02:16]} 1-0

[Event "Late-Titled-Tuesday-Blitz-January-30-2024"]
[Site "Chess.com"]
[Date "2024.01.30"]
[Round "3"]
[White "crazy_but_lazy"]
[Black "Msb2"]
[Result "0-1"]
[WhiteElo "2625"]
[BlackElo "2998"]
[TimeControl "180+1"]
[EndTime "14:25:08 PST"]
[Termination "Msb2 won by resignation"]

1. d4 {[%clk 0:03:00.9]} 1... d5 {[%clk 0:02:59.5]} 2. Nf3 {[%clk 0:02:59.4]}
2... e6 {[%clk 0:02:58.3]} 3. Bf4 {[%clk 0:02:59.2]} 3... c5 {[%clk 0:02:57.6]}
4. e3 {[%clk 0:02:59.6]} 4... Nc6 {[%clk 0:02:58.1]} 5. Nbd2 {[%clk 0:02:57.3]}
5... Bd6 {[%clk 0:02:57.9]} 6. dxc5 {[%clk 0:02:41.5]} 6... Bxf4 {[%clk
0:02:56.8]} 7. exf4 {[%clk 0:02:42.4]} 7... Qf6 {[%clk 0:02:57.4]} 8. c3 {[%clk
0:02:17.6]} 8... Qxf4 {[%clk 0:02:55.5]} 9. Bd3 {[%clk 0:02:16.9]} 9... Nf6
{[%clk 0:02:54.4]} 10. O-O {[%clk 0:02:15.1]} 10... O-O {[%clk 0:02:54.7]} 11.
Re1 {[%clk 0:02:15.4]} 11... Qc7 {[%clk 0:02:52.6]} 12. Qe2 {[%clk 0:02:10.4]}
12... Re8 {[%clk 0:02:51.4]} 13. Ne5 {[%clk 0:02:08.5]} 13... Nxe5 {[%clk
0:02:51.6]} 14. Qxe5 {[%clk 0:02:08.9]} 14... Qxe5 {[%clk 0:02:52.5]} 15. Rxe5
{[%clk 0:02:09.5]} 15... Nd7 {[%clk 0:02:53.3]} 16. Rh5 {[%clk 0:02:09.2]} 16...
g6 {[%clk 0:02:52.3]} 17. Rh4 {[%clk 0:02:08.8]} 17... Nxc5 {[%clk 0:02:52.4]}
18. Bc2 {[%clk 0:02:09.2]} 18... Bd7 {[%clk 0:02:46.8]} 19. Re1 {[%clk 0:02:08]}
19... Bc6 {[%clk 0:02:46.5]} 20. Nf3 {[%clk 0:02:05.2]} 20... Kg7 {[%clk
0:02:46.4]} 21. Ne5 {[%clk 0:01:58.9]} 21... Nd7 {[%clk 0:02:46.2]} 22. Nd3
{[%clk 0:01:54.3]} 22... a5 {[%clk 0:02:42.8]} 23. Rf4 {[%clk 0:01:51.1]} 23...
e5 {[%clk 0:02:40.3]} 24. Rh4 {[%clk 0:01:51.6]} 24... Rad8 {[%clk 0:02:30.3]}
25. Rh3 {[%clk 0:01:51.3]} 25... f6 {[%clk 0:02:28.4]} 26. Rhe3 {[%clk
0:01:51.1]} 26... Nb6 {[%clk 0:02:28.7]} 27. b3 {[%clk 0:01:50.7]} 27... d4
{[%clk 0:02:27.9]} 28. cxd4 {[%clk 0:01:50.5]} 28... Rxd4 {[%clk 0:02:28.8]} 29.
Nc5 {[%clk 0:01:50.8]} 29... Nd7 {[%clk 0:02:20.6]} 30. Nxd7 {[%clk 0:01:47.3]}
30... Rxd7 {[%clk 0:02:21.5]} 31. Rc3 {[%clk 0:01:45.5]} 31... Rd2 {[%clk
0:02:20.8]} 32. a3 {[%clk 0:01:43.3]} 32... Red8 {[%clk 0:02:20.1]} 33. b4
{[%clk 0:01:42.4]} 33... axb4 {[%clk 0:02:21]} 34. axb4 {[%clk 0:01:43.3]} 34...
R8d4 {[%clk 0:02:19.5]} 35. Rb1 {[%clk 0:01:42.2]} 35... Be4 {[%clk 0:02:13.1]}
0-1

[Event "Late-Titled-Tuesday-Blitz-January-30-2024"]
[Site "Chess.com"]
[Date "2024.01.30"]
[Round "3"]
[White "nikitadovbnya2008"]
[Black "ilushka"]
[Result "1-0"]
[WhiteElo "2128"]
[BlackElo "2354"]
[TimeControl "180+1"]
[EndTime "14:25:11 PST"]
[Termination "nikitadovbnya2008 won by checkmate"]

1. d4 {[%clk 0:03:00.9]} 1... e6 {[%clk 0:02:59.9]} 2. c4 {[%clk 0:03:01.1]}
2... b6 {[%clk 0:02:57.9]} 3. Nc3 {[%clk 0:03:01.1]} 3... Bb7 {[%clk 0:02:58.4]}
4. e4 {[%clk 0:03:01.6]} 4... Bb4 {[%clk 0:02:57.9]} 5. Qc2 {[%clk 0:03:01]}
5... Qh4 {[%clk 0:02:56.7]} 6. d5 {[%clk 0:02:45.6]} 6... f5 {[%clk 0:02:43.7]}
7. Be3 {[%clk 0:02:40.3]} 7... fxe4 {[%clk 0:02:35.9]} 8. O-O-O {[%clk
0:02:36.3]} 8... Nf6 {[%clk 0:02:33.9]} 9. Nb5 {[%clk 0:02:30.9]} 9... Na6
{[%clk 0:02:30.2]} 10. dxe6 {[%clk 0:02:26.8]} 10... dxe6 {[%clk 0:02:29.6]} 11.
Nxc7+ {[%clk 0:02:21.1]} 11... Nxc7 {[%clk 0:02:28.2]} 12. Qa4+ {[%clk
0:02:21.7]} 12... Kf7 {[%clk 0:02:22]} 13. Qxb4 {[%clk 0:02:22.1]} 13... Rhd8
{[%clk 0:02:18.2]} 14. Be2 {[%clk 0:02:19.3]} 14... Rxd1+ {[%clk 0:02:10.8]} 15.
Bxd1 {[%clk 0:02:20.2]} 15... Rc8 {[%clk 0:02:06.6]} 16. Qa3 {[%clk 0:02:14.9]}
16... Ncd5 {[%clk 0:02:04]} 17. g3 {[%clk 0:02:11.6]} 17... Nxe3 {[%clk
0:01:53.6]} 18. gxh4 {[%clk 0:02:07.8]} 18... Nxc4 {[%clk 0:01:53.7]} 19. Qxa7
{[%clk 0:02:06.1]} 19... Rc7 {[%clk 0:01:47.7]} 20. Bc2 {[%clk 0:02:03.2]} 20...
e3 {[%clk 0:01:47]} 21. Nh3 {[%clk 0:02:00.9]} 21... Nd5 {[%clk 0:01:38.2]} 22.
Qb8 {[%clk 0:01:57.2]} 22... exf2 {[%clk 0:01:33.9]} 23. Qd8 {[%clk 0:01:52.1]}
23... Nce3 {[%clk 0:01:24.5]} 24. Ng5# {[%clk 0:01:49.2]} 1-0

[Event "Late-Titled-Tuesday-Blitz-January-30-2024"]
[Site "Chess.com"]
[Date "2024.01.30"]
[Round "3"]
[White "ilya2700"]
[Black "ArtemDyachuk"]
[Result "0-1"]
[WhiteElo "2310"]
[BlackElo "2627"]
[TimeControl "180+1"]
[EndTime "14:25:44 PST"]
[Termination "ArtemDyachuk won on time"]

1. e4 {[%clk 0:03:00]} 1... c5 {[%clk 0:02:55.2]} 2. c4 {[%clk 0:03:00]} 2...
Nc6 {[%clk 0:02:49.5]} 3. Ne2 {[%clk 0:03:00.3]} 3... e6 {[%clk 0:02:48.8]} 4.
d4 {[%clk 0:03:00.3]} 4... cxd4 {[%clk 0:02:48.1]} 5. Nxd4 {[%clk 0:03:01.2]}
5... Nf6 {[%clk 0:02:48.9]} 6. Nc3 {[%clk 0:03:01.4]} 6... Qc7 {[%clk 0:02:46]}
7. Be2 {[%clk 0:02:56.4]} 7... Bb4 {[%clk 0:02:42.8]} 8. Nxc6 {[%clk 0:02:30.2]}
8... bxc6 {[%clk 0:02:37.4]} 9. Qc2 {[%clk 0:02:15.6]} 9... Qe5 {[%clk
0:02:17.5]} 10. f4 {[%clk 0:01:18.7]} 10... Qxe4 {[%clk 0:02:15.9]} 11. O-O
{[%clk 0:01:13.4]} 11... Qxc2 {[%clk 0:02:15]} 0-1

[Event "Late-Titled-Tuesday-Blitz-January-30-2024"]
[Site "Chess.com"]
[Date "2024.01.30"]
[Round "3"]
[White "venturov"]
[Black "Burgsvik"]
[Result "1-0"]
[WhiteElo "2475"]
[BlackElo "2278"]
[TimeControl "180+1"]
[EndTime "14:26:12 PST"]
[Termination "venturov won by resignation"]

1. Nf3 {[%clk 0:03:00.9]} 1... c5 {[%clk 0:03:00.9]} 2. e4 {[%clk 0:02:58.7]}
2... Nc6 {[%clk 0:03:00.9]} 3. d4 {[%clk 0:02:58]} 3... cxd4 {[%clk 0:03:01.8]}
4. Nxd4 {[%clk 0:02:58.9]} 4... Nf6 {[%clk 0:03:01.8]} 5. Nc3 {[%clk 0:02:59.6]}
5... e5 {[%clk 0:03:01.9]} 6. Ndb5 {[%clk 0:02:59.7]} 6... d6 {[%clk 0:03:02.2]}
7. Nd5 {[%clk 0:02:59.8]} 7... Nxd5 {[%clk 0:03:01.7]} 8. exd5 {[%clk
0:03:00.7]} 8... Ne7 {[%clk 0:03:02.1]} 9. c3 {[%clk 0:02:54.8]} 9... Ng6 {[%clk
0:02:50.9]} 10. a4 {[%clk 0:02:50.3]} 10... Be7 {[%clk 0:02:49.6]} 11. Be2
{[%clk 0:02:50.3]} 11... O-O {[%clk 0:02:42.2]} 12. O-O {[%clk 0:02:50.4]} 12...
f5 {[%clk 0:02:41.7]} 13. f4 {[%clk 0:02:48.4]} 13... a6 {[%clk 0:02:40.1]} 14.
Na3 {[%clk 0:02:48.1]} 14... exf4 {[%clk 0:02:38.3]} 15. Bxf4 {[%clk 0:02:44.1]}
15... Nxf4 {[%clk 0:02:37.9]} 16. Rxf4 {[%clk 0:02:45]} 16... Bg5 {[%clk
0:02:37.8]} 17. Rf1 {[%clk 0:02:42.4]} 17... Bd7 {[%clk 0:02:34.1]} 18. Nc4
{[%clk 0:02:41.3]} 18... Qc7 {[%clk 0:02:28.6]} 19. Kh1 {[%clk 0:02:35.2]} 19...
b5 {[%clk 0:02:26.7]} 20. axb5 {[%clk 0:02:31.9]} 20... axb5 {[%clk 0:02:26.6]}
21. Rxa8 {[%clk 0:02:32.6]} 21... Rxa8 {[%clk 0:02:25.4]} 22. Na3 {[%clk
0:02:33]} 22... Qc5 {[%clk 0:02:18.9]} 23. Qb3 {[%clk 0:02:24.3]} 23... Rb8
{[%clk 0:02:14.6]} 24. Nc2 {[%clk 0:02:15.8]} 24... Bf6 {[%clk 0:02:08.1]} 25.
Nb4 {[%clk 0:02:02.1]} 25... Kh8 {[%clk 0:02:00.8]} 26. Na6 {[%clk 0:01:59]}
26... Qe3 {[%clk 0:01:50.1]} 27. Nxb8 {[%clk 0:01:57.7]} 27... Qxe2 {[%clk
0:01:49.9]} 28. Qd1 {[%clk 0:01:58.1]} 28... Qe8 {[%clk 0:01:39.1]} 29. Nxd7
{[%clk 0:01:56]} 29... Qxd7 {[%clk 0:01:39.2]} 30. Qd3 {[%clk 0:01:53.9]} 30...
g6 {[%clk 0:01:38.9]} 31. Re1 {[%clk 0:01:53.9]} 31... Be5 {[%clk 0:01:38.5]}
32. Ra1 {[%clk 0:01:50.8]} 32... Kg7 {[%clk 0:01:37.1]} 33. Qe3 {[%clk 0:01:40]}
33... Kf6 {[%clk 0:01:31.3]} 34. Ra7 {[%clk 0:01:36.6]} 34... Qc8 {[%clk
0:01:28.5]} 35. Qh6 {[%clk 0:01:35.5]} 35... f4 {[%clk 0:01:22.7]} 36. Qxh7
{[%clk 0:01:21.5]} 36... Kf5 {[%clk 0:01:20.3]} 37. Qh3+ {[%clk 0:01:21.6]} 1-0

[Event "Late-Titled-Tuesday-Blitz-January-30-2024"]
[Site "Chess.com"]
[Date "2024.01.30"]
[Round "3"]
[White "Tomytoteph"]
[Black "ATM622"]
[Result "1-0"]
[WhiteElo "2622"]
[BlackElo "2462"]
[TimeControl "180+1"]
[EndTime "14:26:15 PST"]
[Termination "Tomytoteph won by resignation"]

1. e4 {[%clk 0:03:00.9]} 1... c6 {[%clk 0:02:59.2]} 2. d4 {[%clk 0:03:00.8]}
2... d5 {[%clk 0:02:59.5]} 3. Nd2 {[%clk 0:03:01.5]} 3... dxe4 {[%clk
0:02:59.5]} 4. Nxe4 {[%clk 0:03:02.4]} 4... Bf5 {[%clk 0:02:58.9]} 5. Ng3 {[%clk
0:03:02.5]} 5... Bg6 {[%clk 0:02:59.5]} 6. Nf3 {[%clk 0:03:03.1]} 6... Nd7
{[%clk 0:02:58.9]} 7. h4 {[%clk 0:02:59.6]} 7... h6 {[%clk 0:02:59.1]} 8. h5
{[%clk 0:03:00.5]} 8... Bh7 {[%clk 0:02:59.4]} 9. Bd3 {[%clk 0:03:01.4]} 9...
Bxd3 {[%clk 0:02:59.7]} 10. Qxd3 {[%clk 0:03:02.3]} 10... Ngf6 {[%clk
0:02:59.7]} 11. c3 {[%clk 0:03:02.1]} 11... e6 {[%clk 0:03:00.4]} 12. Bf4 {[%clk
0:03:01.7]} 12... Be7 {[%clk 0:03:00.7]} 13. O-O-O {[%clk 0:03:01.5]} 13... Qb6
{[%clk 0:02:53.6]} 14. Ne4 {[%clk 0:03:00.6]} 14... Nxe4 {[%clk 0:02:52.6]} 15.
Qxe4 {[%clk 0:03:00.6]} 15... Nf6 {[%clk 0:02:53.2]} 16. Qd3 {[%clk 0:02:59.5]}
16... Nd5 {[%clk 0:02:52.2]} 17. Bd2 {[%clk 0:02:59.2]} 17... a5 {[%clk
0:02:51.8]} 18. Ne5 {[%clk 0:02:59.3]} 18... Qa6 {[%clk 0:02:49.9]} 19. c4
{[%clk 0:02:55.2]} 19... Nb4 {[%clk 0:02:46.4]} 20. Qb3 {[%clk 0:02:52.6]} 20...
a4 {[%clk 0:02:44.6]} 21. Qa3 {[%clk 0:02:46.8]} 21... Nc2 {[%clk 0:01:51.8]}
22. Qf3 {[%clk 0:02:37.5]} 22... a3 {[%clk 0:01:25.2]} 23. Qxf7+ {[%clk
0:02:33.7]} 23... Kd8 {[%clk 0:01:24.9]} 24. b3 {[%clk 0:02:22.9]} 24... Nxd4
{[%clk 0:00:47.1]} 25. Bb4 {[%clk 0:02:18.2]} 25... c5 {[%clk 0:00:08.3]} 26.
Bxc5 {[%clk 0:02:14.8]} 26... Bg5+ {[%clk 0:00:03.2]} 27. Kb1 {[%clk 0:02:13.6]}
1-0

[Event "Late-Titled-Tuesday-Blitz-January-30-2024"]
[Site "Chess.com"]
[Date "2024.01.30"]
[Round "3"]
[White "shimastream"]
[Black "RantomOpening"]
[Result "1-0"]
[WhiteElo "3010"]
[BlackElo "2538"]
[TimeControl "180+1"]
[EndTime "14:26:29 PST"]
[Termination "shimastream won by resignation"]

1. d4 {[%clk 0:02:55.5]} 1... d5 {[%clk 0:02:58.3]} 2. c4 {[%clk 0:02:54.6]}
2... e6 {[%clk 0:02:58.8]} 3. Nc3 {[%clk 0:02:54.5]} 3... Nf6 {[%clk 0:02:57.9]}
4. Bg5 {[%clk 0:02:54.5]} 4... c5 {[%clk 0:02:58]} 5. e3 {[%clk 0:02:47.8]} 5...
cxd4 {[%clk 0:02:56.7]} 6. exd4 {[%clk 0:02:48.7]} 6... Be7 {[%clk 0:02:57.1]}
7. Nf3 {[%clk 0:02:49.1]} 7... O-O {[%clk 0:02:57.4]} 8. a3 {[%clk 0:02:45.4]}
8... b6 {[%clk 0:02:56.9]} 9. Qc2 {[%clk 0:02:17.8]} 9... Bb7 {[%clk 0:02:54.1]}
10. O-O-O {[%clk 0:02:17.9]} 10... dxc4 {[%clk 0:02:53.6]} 11. Bxc4 {[%clk
0:02:18.8]} 11... Nbd7 {[%clk 0:02:53.9]} 12. Kb1 {[%clk 0:02:15.7]} 12... Rc8
{[%clk 0:02:53.9]} 13. Ne5 {[%clk 0:02:11.5]} 13... h6 {[%clk 0:02:47.9]} 14. h4
{[%clk 0:02:07.6]} 14... Nd5 {[%clk 0:02:38.4]} 15. Bxd5 {[%clk 0:02:06.1]}
15... Bxd5 {[%clk 0:02:35.5]} 16. Bxe7 {[%clk 0:02:05.8]} 16... Qxe7 {[%clk
0:02:35]} 17. Nxd5 {[%clk 0:01:56.3]} 17... exd5 {[%clk 0:02:34]} 18. Qf5 {[%clk
0:01:57]} 18... Nxe5 {[%clk 0:02:30.5]} 19. dxe5 {[%clk 0:01:57.9]} 19... Qe6
{[%clk 0:02:26.1]} 20. g4 {[%clk 0:01:56.4]} 20... Rfe8 {[%clk 0:02:21.5]} 21.
f4 {[%clk 0:01:54.5]} 21... Rc4 {[%clk 0:02:21.4]} 22. Rhf1 {[%clk 0:01:52.6]}
22... Re4 {[%clk 0:02:12]} 23. h5 {[%clk 0:01:49.7]} 23... Rc8 {[%clk 0:01:50]}
24. Rxd5 {[%clk 0:01:33.5]} 24... Re2 {[%clk 0:01:15.1]} 25. Rfd1 {[%clk
0:01:20.4]} 25... Qxf5+ {[%clk 0:01:01.3]} 26. gxf5 {[%clk 0:01:21.3]} 26...
Rcc2 {[%clk 0:00:56.7]} 27. Rb5 {[%clk 0:01:20.8]} 27... Re4 {[%clk 0:00:53.1]}
28. Kxc2 {[%clk 0:01:16]} 1-0

[Event "Late-Titled-Tuesday-Blitz-January-30-2024"]
[Site "Chess.com"]
[Date "2024.01.30"]
[Round "3"]
[White "Russian_berezka"]
[Black "Akhayan"]
[Result "1-0"]
[WhiteElo "2572"]
[BlackElo "2351"]
[TimeControl "180+1"]
[EndTime "14:26:33 PST"]
[Termination "Russian_berezka won by checkmate"]

1. e4 {[%clk 0:03:00.9]} 1... a6 {[%clk 0:02:59.8]} 2. f4 {[%clk 0:02:59.1]}
2... e6 {[%clk 0:02:59.6]} 3. Nf3 {[%clk 0:02:58.6]} 3... d5 {[%clk 0:03:00.2]}
4. e5 {[%clk 0:02:57.5]} 4... c5 {[%clk 0:03:00.1]} 5. d4 {[%clk 0:02:55.5]}
5... Nc6 {[%clk 0:03:00.1]} 6. c3 {[%clk 0:02:55.3]} 6... Nge7 {[%clk 0:02:59]}
7. Bd3 {[%clk 0:02:54.5]} 7... Bd7 {[%clk 0:02:56.5]} 8. Be3 {[%clk 0:02:53.4]}
8... cxd4 {[%clk 0:02:56.6]} 9. cxd4 {[%clk 0:02:50.4]} 9... Nb4 {[%clk
0:02:57.1]} 10. Be2 {[%clk 0:02:48.6]} 10... Rc8 {[%clk 0:02:53.4]} 11. Nc3
{[%clk 0:02:48.5]} 11... Nf5 {[%clk 0:02:48.8]} 12. Bf2 {[%clk 0:02:46.6]} 12...
Be7 {[%clk 0:02:44.3]} 13. a3 {[%clk 0:02:42.6]} 13... Nc6 {[%clk 0:02:43.5]}
14. O-O {[%clk 0:02:42.6]} 14... O-O {[%clk 0:02:41.6]} 15. Qe1 {[%clk
0:02:36.6]} 15... g6 {[%clk 0:02:37.9]} 16. g4 {[%clk 0:02:35]} 16... Ng7 {[%clk
0:02:38.3]} 17. Qd2 {[%clk 0:02:31.7]} 17... Na5 {[%clk 0:02:34.5]} 18. Rad1
{[%clk 0:02:27.4]} 18... Nc4 {[%clk 0:02:33.6]} 19. Bxc4 {[%clk 0:02:23.2]}
19... Rxc4 {[%clk 0:02:32.9]} 20. h4 {[%clk 0:02:20.7]} 20... b5 {[%clk
0:02:31.9]} 21. Kg2 {[%clk 0:02:10.6]} 21... b4 {[%clk 0:02:30.3]} 22. axb4
{[%clk 0:02:10.3]} 22... Bxb4 {[%clk 0:02:30.4]} 23. f5 {[%clk 0:02:04.7]} 23...
Bxc3 {[%clk 0:02:24.2]} 24. bxc3 {[%clk 0:02:03.4]} 24... exf5 {[%clk
0:02:24.4]} 25. Qh6 {[%clk 0:01:59]} 25... Ne6 {[%clk 0:01:54.6]} 26. gxf5
{[%clk 0:01:55.9]} 26... gxf5 {[%clk 0:01:54.1]} 27. h5 {[%clk 0:01:49]} 27...
f6 {[%clk 0:01:24.8]} 28. Bh4 {[%clk 0:01:39.7]} 28... Rxc3 {[%clk 0:01:17.3]}
29. Bxf6 {[%clk 0:01:36.2]} 29... Rc2+ {[%clk 0:01:16.7]} 30. Kh1 {[%clk
0:01:34.8]} 30... Rxf6 {[%clk 0:01:15.5]} 31. exf6 {[%clk 0:01:34]} 31... Kh8
{[%clk 0:01:05.9]} 32. Ng5 {[%clk 0:01:25.5]} 32... Qb8 {[%clk 0:00:48]} 33.
Qxh7# {[%clk 0:01:22.9]} 1-0

[Event "Late-Titled-Tuesday-Blitz-January-30-2024"]
[Site "Chess.com"]
[Date "2024.01.30"]
[Round "3"]
[White "Flaccidmoves"]
[Black "Doomfist26"]
[Result "0-1"]
[WhiteElo "2455"]
[BlackElo "2617"]
[TimeControl "180+1"]
[EndTime "14:26:37 PST"]
[Termination "Doomfist26 won by resignation"]

1. c4 {[%clk 0:03:00.9]} 1... Nf6 {[%clk 0:02:57.3]} 2. Nc3 {[%clk 0:03:00.4]}
2... g6 {[%clk 0:02:57.9]} 3. e4 {[%clk 0:03:00.6]} 3... d6 {[%clk 0:02:58.6]}
4. d4 {[%clk 0:03:01.1]} 4... Bg7 {[%clk 0:02:59.3]} 5. Nf3 {[%clk 0:03:01.6]}
5... O-O {[%clk 0:02:59.8]} 6. h3 {[%clk 0:03:02.3]} 6... e5 {[%clk 0:02:59.1]}
7. d5 {[%clk 0:03:02.1]} 7... Na6 {[%clk 0:02:59.3]} 8. Be3 {[%clk 0:03:02]}
8... Nc5 {[%clk 0:02:59.6]} 9. Nd2 {[%clk 0:03:02.2]} 9... a5 {[%clk 0:02:58.4]}
10. g4 {[%clk 0:03:01.4]} 10... c6 {[%clk 0:02:57]} 11. Qf3 {[%clk 0:02:48.1]}
11... cxd5 {[%clk 0:02:56.2]} 12. cxd5 {[%clk 0:02:46.6]} 12... a4 {[%clk
0:02:56.1]} 13. a3 {[%clk 0:02:29.1]} 13... Qa5 {[%clk 0:02:52.1]} 14. Nc4
{[%clk 0:02:26.1]} 14... Qd8 {[%clk 0:02:46.4]} 15. Bxc5 {[%clk 0:01:53.5]}
15... dxc5 {[%clk 0:02:45.2]} 16. O-O-O {[%clk 0:01:40.6]} 16... Ne8 {[%clk
0:02:15.9]} 17. d6 {[%clk 0:01:38.5]} 17... Bd7 {[%clk 0:02:10.9]} 18. Nd5
{[%clk 0:01:33.5]} 18... b5 {[%clk 0:02:07.4]} 19. Ncb6 {[%clk 0:01:31.5]} 19...
Ra6 {[%clk 0:01:48.9]} 20. Nxd7 {[%clk 0:01:11.2]} 20... Qxd7 {[%clk 0:01:47.5]}
21. g5 {[%clk 0:01:05.8]} 21... Rxd6 {[%clk 0:01:38.9]} 22. Bxb5 {[%clk
0:01:01.9]} 22... Qxb5 {[%clk 0:01:33.3]} 23. Ne7+ {[%clk 0:01:01.6]} 23... Kh8
{[%clk 0:01:33.2]} 24. Rxd6 {[%clk 0:01:02]} 24... Nxd6 {[%clk 0:01:31.1]} 25.
Rd1 {[%clk 0:00:50.9]} 25... Qc4+ {[%clk 0:01:29.2]} 26. Kb1 {[%clk 0:00:50.3]}
26... Qxe4+ {[%clk 0:01:29.2]} 27. Qxe4 {[%clk 0:00:48.3]} 27... Nxe4 {[%clk
0:01:30.1]} 28. Rd7 {[%clk 0:00:40.5]} 28... Nxg5 {[%clk 0:01:28.9]} 29. h4
{[%clk 0:00:37.5]} 29... Ne6 {[%clk 0:01:27]} 0-1